bitfinex-derivatives/quotes_BNBF0:USTF0_20250424
["timestamp","ask_amount","ask_price","bid_price","bid_amount"]
[1745454140113,1.2511719,606.49,604.71,0.3034396]
[1745454142417,1.2511719,606.49,604.7,1.189]
[1745454142610,1.2511719,606.49,604.71,0.30344071]
[1745454142816,0.28741803,606.88,604.71,0.30344071]
[1745454142817,1.2511719,606.4,604.71,0.30344071]
[1745454143718,1.2511719,606.4,604.7,1.189]
[1745454145319,1.2511719,606.83,604.7,1.189]
[1745454145715,0.28742515,606.82,604.7,1.189]
[1745454147421,1.2511719,606.83,604.7,1.189]
[1745454147721,0.28741091,606.81,604.7,1.189]
[1745454149722,0.28741091,606.81,604.68,1.033]
[1745454149922,0.28741091,606.81,604.69,0.30341782]
[1745454150419,0.28741091,606.81,604.68,1.033]
[1745454150625,1.2511719,606.89,604.69,0.3034138]
[1745454151525,1.2511719,606.89,604.68,1.033]
[1745454151722,0.28738954,606.88,604.69,0.3034201]
[1745454153127,0.28738954,606.88,604.7,1.003]
[1745454153328,0.28738954,606.88,604.71,0.3034201]
[1745454153528,1.2511719,606.89,604.71,0.3034201]
[1745454153723,1.2511719,606.89,604.72,0.30341545]
[1745454153927,1.2511719,606.89,604.71,0.30341545]
[1745454154127,1.2511719,606.89,604.72,0.30341545]
[1745454154326,1.2511719,606.89,604.71,0.30341545]
[1745454154522,1.2511719,606.89,604.72,0.30341545]
[1745454154727,0.28738717,606.88,604.71,0.30341545]
[1745454154927,0.28738717,606.88,604.72,0.30341545]
[1745454155230,0.28738717,606.88,604.73,0.30341545]
[1745454155423,0.28738717,606.88,604.71,0.30341545]
[1745454155625,0.28738717,606.88,604.72,0.30341545]
[1745454155830,0.28738717,606.88,604.71,0.30341545]
[1745454156028,0.28738717,606.88,604.72,0.30341545]
[1745454156226,0.28738717,606.88,604.72,1.317]
[1745454156430,0.28738717,606.88,604.73,0.30341545]
[1745454156734,1.2511719,606.89,604.73,0.30341545]
[1745454156934,0.2873848,606.87,604.73,0.30341545]
[1745454159535,1.2511719,606.91,604.73,0.30341545]
[1745454160634,0.28739904,606.9,604.73,0.30341545]
[1745454161137,1.2511719,606.74,604.73,0.30341545]
[1745454162235,1.2511719,606.74,604.72,1.317]
[1745454162940,1.2511719,606.67,604.72,1.317]
[1745454163740,0.28742752,606.66,604.72,1.317]
[1745454165443,1.2511719,607.05,604.72,1.317]
[1745454166639,0.28738243,607.04,604.72,1.317]
[1745454167846,0.28738243,607.04,604.73,1.61]
[1745454168444,1.2511719,607.21,604.73,1.61]
[1745454169748,0.287367,607.2,604.73,1.61]
[1745454170148,1.2511719,607.16,604.73,1.61]
[1745454172342,1.2511719,607.17,604.73,1.61]
[1745454172648,0.28737293,607.15,604.73,1.61]
[1745454175145,1.2511719,606.98,604.73,1.61]
[1745454175648,1.2511719,606.98,604.74,1.123]
[1745454178350,1.2511719,606.99,604.74,1.123]
[1745454181547,1.2511719,606.99,604.75,0.30345523]
[1745454181751,0.28741328,606.98,604.75,0.30345523]
[1745454182151,1.2511719,606.62,604.75,0.30345523]
[1745454183855,1.2511719,606.46,604.75,0.30345523]
[1745454184951,1.2511719,606.46,604.74,1.123]
[1745454185152,1.2511719,606.46,604.75,0.30346207]
[1745454185552,1.2511719,606.52,604.75,0.30346207]
[1745454185848,1.2511719,606.52,604.74,1.123]
[1745454186552,1.2511719,606.52,604.75,1.523]
[1745454188255,0.28741328,606.98,604.75,1.523]
[1745454188256,1.2511719,606.63,604.75,1.523]
[1745454191363,1.2511719,606.5,604.75,1.523]
[1745454192160,0.28747026,606.49,604.75,1.523]
[1745454193365,0.28747026,606.49,604.76,1.405]
[1745454196968,0.28747026,606.49,604.77,1.498]
[1745454198579,1.2511719,606.95,604.77,1.498]
[1745454199475,1.2511719,606.91,604.77,1.498]
[1745454202775,1.2511719,606.65,604.77,1.498]
[1745454202969,1.2511719,606.65,604.78,0.30342166]
[1745454203970,0.28742871,606.64,604.78,0.30342166]
[1745454204174,0.28742871,606.64,604.77,1.498]
[1745454204470,1.2511719,606.65,604.77,1.498]
[1745454205277,1.2511719,606.68,604.77,1.498]
[1745454208276,1.2511719,607.07,604.78,0.30347363]
[1745454208780,0.28745364,606.67,604.78,0.30347363]
[1745454208976,1.2511719,607.07,604.78,1.271]
[1745454209884,0.28740616,607.06,604.78,1.271]
[1745454210485,1.2511719,606.37,604.78,1.271]
[1745454211083,1.2511719,606.37,604.78,2.411]
[1745454211479,0.28749639,606.36,604.78,2.411]
[1745454213485,1.2511719,606.37,604.78,2.411]
[1745454213785,1.2511719,606.82,604.78,2.411]
[1745454214186,0.28747739,606.68,604.78,2.411]
[1745454214380,1.2511719,606.82,604.78,2.411]
[1745454215286,0.2874762,606.81,604.78,2.411]
[1745454215888,0.2874762,606.81,604.35,0.28747857]
[1745454216181,0.2874762,606.81,604.36,0.30358244]
[1745454216688,1.2511719,606.82,604.37,0.30358244]
[1745454216883,1.2511719,606.5,604.34,0.28753083]
[1745454217087,1.2511719,606.5,604.35,0.30358244]
[1745454219197,1.2511719,606.5,604.34,0.28753083]
[1745454219395,1.2511719,606.5,604.35,0.30357493]
[1745454220097,1.2511719,606.46,604.35,0.30357493]
[1745454220497,1.2511719,606.46,604.36,1.455]
[1745454220697,1.2511719,606.46,604.37,0.30357493]
[1745454220900,1.2511719,606.46,604.38,0.30359925]
[1745454221098,1.2511719,606.46,604.37,0.30359925]
[1745454221499,1.2511719,606.46,604.38,1.156]
[1745454221795,1.2511719,606.46,604.39,0.30359925]
[1745454222099,1.2511719,606.46,604.39,1.32859925]
[1745454222298,1.2511719,606.46,604.4,0.30359925]
[1745454222495,1.2511719,606.26,604.4,0.30359925]
[1745454223299,1.2511719,606.26,604.39,1.025]
[1745454223494,1.2511719,606.26,604.4,0.30363106]
[1745454223796,0.28761281,606.25,604.4,0.30363106]
[1745454224495,0.28761281,606.25,604.39,1.025]
[1745454224699,0.28761281,606.25,604.4,0.30362819]
[1745454225500,1.2511719,606.31,604.4,0.30362819]
[1745454226195,1.2511719,606.31,604.41,0.30362247]
[1745454226400,1.2511719,606.31,604.42,0.30362247]
[1745454226599,1.2511719,606.31,604.4,0.30362247]
[1745454226799,0.28760687,606.3,604.39,1.025]
[1745454227094,0.28760687,606.3,604.4,0.30362214]
[1745454227600,0.28760687,606.3,604.39,1.025]
[1745454227801,0.28760687,606.3,604.4,0.30362137]
[1745454228300,0.28760687,606.3,604.39,1.025]
[1745454231502,1.2511719,607.01,604.39,1.025]
[1745454232003,1.2511719,607.03,604.39,1.025]
[1745454232802,0.28750232,607.02,604.4,0.30358425]
[1745454233903,1.2511719,606.84,604.4,0.30358425]
[1745454235903,0.28752489,606.83,604.4,0.30358425]
[1745454236108,0.28752489,606.83,604.4,1.67858425]
[1745454236307,0.28752489,606.83,604.41,0.30358425]
[1745454236604,0.28752489,606.83,604.4,1.375]
[1745454236805,0.28752489,606.83,604.41,0.30358873]
[1745454237801,1.2511719,606.61,604.41,0.30358873]
[1745454238109,1.2511719,606.61,604.41,1.75358873]
[1745454238308,1.2511719,606.61,604.42,0.30358873]
[1745454239709,1.2511719,606.43,604.42,0.30358873]
[1745454240714,0.28757835,606.42,604.42,0.30358873]
[1745454242716,1.2511719,606.26,604.42,0.30358873]
[1745454244815,0.28759855,606.25,604.42,0.30358873]
[1745454245812,1.2511719,606.03,604.42,0.30358873]
[1745454247717,0.28764966,606.02,604.42,0.30358873]
[1745454248515,0.28764966,606.02,604.41,1.45]
[1745454252521,1.2511719,606.27,604.41,1.45]
[1745454253724,1.2511719,606.18,604.41,1.45]
[1745454254924,0.28764372,606.17,604.41,1.45]
[1745454255524,1.2511719,606.18,604.41,1.45]
[1745454256424,1.2511719,606.06,604.41,1.45]
[1745454259030,1.2511719,606.34,604.41,1.45]
[1745454259828,0.28764134,606.33,604.41,1.45]
[1745454261629,1.2511719,606.41,604.41,1.45]
[1745454262026,1.2511719,606.41,604.41,2.521]
[1745454262830,0.28763302,606.4,604.41,2.521]
[1745454263326,0.28763302,606.4,604.41,4.106]
[1745454263530,0.28763302,606.4,604.41,5.34]
[1745454267235,1.2511719,606.03,604.41,5.34]
[1745454270038,1.2511719,606.08,604.41,5.34]
[1745454271739,0.28769603,606.07,604.41,5.34]
[1745454273546,1.2511719,606.25,604.41,5.34]
[1745454274839,0.28769247,606.24,604.41,5.34]
[1745454275344,1.2511719,606.22,604.41,5.34]
[1745454277744,0.28769247,606.24,604.41,5.34]
[1745454277745,1.2511719,605.91,604.41,5.34]
[1745454280844,0.28774242,605.9,604.41,5.34]
[1745454281140,1.53891432,605.9,604.41,5.34]
[1745454282545,1.2511719,605.9,604.41,5.34]
[1745454282844,0.28774599,605.89,604.41,5.34]
[1745454288448,0.28774599,605.89,603.69,0.28756885]
[1745454289850,0.28774599,605.89,603.7,0.30388473]
[1745454290151,0.28774599,605.89,603.69,0.28756885]
[1745454290452,0.28774599,605.89,603.7,0.30387934]
[1745454290753,0.28774599,605.89,603.69,0.28756885]
[1745454290948,0.28774599,605.89,603.7,0.30387939]
[1745454291150,0.28774599,605.89,603.69,0.28756885]
[1745454291551,1.2511719,606.79,603.7,0.30387911]
[1745454291752,1.2511719,606.79,603.11,0.30387753]
[1745454291952,2.12872998,607.7,596.46,0.60684333]
[1745454291953,0.28782453,605.88,603.69,0.28782453]
[1745454292152,1.2511719,606.48,603.7,0.30387838]
[1745454292352,1.2511719,606.48,603.14,0.30387838]
[1745454292854,0.28785786,606.47,603.15,0.28785786]
[1745454293153,0.28785786,606.47,603.16,0.30387838]
[1745454293553,0.28785786,606.47,603.15,0.28785786]
[1745454293753,0.28785786,606.47,603.16,0.3038803]
[1745454294550,1.2511719,606.57,603.16,1.4588803]
[1745454294754,1.2511719,606.57,603.17,0.3038803]
[1745454294952,0.28784357,606.56,603.17,0.3038803]
[1745454295153,0.28784357,606.56,603.17,1.8098803]
[1745454295354,0.28784357,606.56,603.18,0.3038803]
[1745454295856,0.28784357,606.56,603.18,1.6058803]
[1745454296056,1.2511719,606.51,603.19,0.3038803]
[1745454296751,1.2511719,606.51,603.18,1.302]
[1745454296954,1.2511719,606.51,603.19,0.30387639]
[1745454298057,0.28784833,606.5,603.19,0.30387639]
[1745454299556,0.28784833,606.5,603.2,0.30387639]
[1745454299754,0.28784833,606.5,603.21,0.30387639]
[1745454299953,0.28784833,606.5,603.18,1.302]
[1745454299954,0.28784833,606.5,603.22,0.30387639]
[1745454300249,0.28784833,606.5,603.23,0.30387639]
[1745454300456,1.2511719,606.38,603.24,1.35252717]
[1745454300656,1.2511719,606.38,603.25,0.30387639]
[1745454300859,1.2511719,606.38,603.26,0.30387639]
[1745454301152,1.2511719,606.38,603.27,0.30387639]
[1745454301354,1.2511719,606.38,603.28,0.30387639]
[1745454301550,1.2511719,606.38,603.29,0.30387639]
[1745454301755,1.2511719,606.38,603.3,0.30387639]
[1745454302058,0.28785667,606.37,603.31,0.30387639]
[1745454302250,0.28785667,606.37,603.32,0.30387639]
[1745454302453,0.28785667,606.37,603.33,0.30387639]
[1745454302652,0.28785667,606.37,603.34,0.30387639]
[1745454302956,0.28785667,606.37,603.35,0.30387639]
[1745454303156,0.28785667,606.37,603.36,0.30387639]
[1745454303354,0.28785667,606.37,603.37,0.30387639]
[1745454303557,1.2511719,606.38,603.38,0.30387639]
[1745454303764,1.2511719,605.94,603.48,1.04865078]
[1745454304057,1.2511719,605.94,603.49,0.30387639]
[1745454304258,1.2511719,605.94,603.5,0.30388442]
[1745454304457,1.2511719,605.94,603.51,0.30388442]
[1745454304657,1.2511719,605.94,603.52,0.30388442]
[1745454304852,0.28789001,605.93,603.53,0.30388442]
[1745454305056,0.28789001,605.93,603.54,0.30388442]
[1745454305254,0.28789001,605.93,603.55,0.30388442]
[1745454305457,0.28789001,605.93,603.56,0.30388442]
[1745454305659,0.28789001,605.93,603.57,0.30388442]
[1745454305856,0.28789001,605.93,603.58,0.30388442]
[1745454306062,0.28789001,605.93,603.59,0.30388442]
[1745454306256,1.2511719,605.7,603.57,1.04865078]
[1745454306455,1.2511719,605.7,603.58,0.30388442]
[1745454306656,1.2511719,605.7,603.59,0.30388442]
[1745454306958,1.2511719,605.7,603.58,0.30388442]
[1745454307162,1.2511719,605.7,603.59,0.30388442]
[1745454307360,1.2511719,605.7,603.58,0.30388442]
[1745454307660,1.2511719,605.7,603.59,0.30388442]
[1745454307861,0.28790549,605.69,603.6,0.30388442]
[1745454308155,0.28790549,605.69,603.61,0.30388442]
[1745454308356,0.28790549,605.69,603.58,0.30388442]
[1745454308760,1.2511719,605.63,603.58,0.30388442]
[1745454308961,1.2511719,605.63,603.57,0.30388442]
[1745454309161,1.2511719,605.63,603.58,0.30388442]
[1745454309360,1.2511719,605.63,603.57,0.30388442]
[1745454309562,1.2511719,605.63,603.58,0.30388442]
[1745454309762,1.2511719,605.63,603.57,0.30388442]
[1745454309956,1.2511719,605.63,603.58,0.30388442]
[1745454310261,1.2511719,605.63,603.57,0.30388442]
[1745454310462,1.2511719,605.63,603.58,0.30389142]
[1745454310761,1.2511719,605.63,603.57,0.30389142]
[1745454311061,0.28791502,605.62,603.58,0.30389142]
[1745454311261,0.28791502,605.62,603.53,0.30389142]
[1745454311457,0.28791502,605.62,603.54,0.30389142]
[1745454311662,0.28791502,605.62,603.53,0.30389142]
[1745454311866,0.28791502,605.62,603.55,0.30389142]
[1745454312063,0.28791502,605.62,603.56,0.30389142]
[1745454312263,0.28791502,605.62,603.52,0.28791502]
[1745454312264,0.28791502,605.62,603.57,0.30389142]
[1745454312459,0.28791502,605.62,603.53,0.30389142]
[1745454312661,1.2511719,606.19,603.54,0.30389142]
[1745454312862,0.2878531,605.61,603.36,0.30389142]
[1745454313060,1.2511719,606.19,603.36,0.30389142]
[1745454313467,1.2511719,606.14,603.39,1.04865078]
[1745454313667,1.2511719,606.14,603.4,0.30389038]
[1745454313867,0.28787453,606.13,603.4,0.59176491]
[1745454314063,0.28787453,606.13,603.41,0.30389038]
[1745454315569,1.2511719,606.14,603.41,0.30389038]
[1745454315768,1.2511719,606.14,603.42,0.30389038]
[1745454315968,1.2511719,606.14,603.41,1.425]
[1745454316164,1.2511719,606.11,603.44,1.04865078]
[1745454316369,1.2511719,606.11,603.45,0.30389038]
[1745454316669,1.2511719,606.11,603.44,1.04865078]
[1745454316870,0.28787215,606.1,603.45,0.30388285]
[1745454317065,0.28787215,606.1,603.46,0.30388285]
[1745454317266,0.28787215,606.1,603.47,0.30388285]
[1745454317464,0.28787215,606.1,603.48,0.30388285]
[1745454317665,0.28787215,606.1,603.49,0.30388285]
[1745454317865,0.28787215,606.1,603.5,0.30388285]
[1745454318071,0.28787215,606.1,603.51,0.30388285]
[1745454318267,0.28787215,606.1,603.44,1.04865078]
[1745454318467,0.28787215,606.1,603.45,0.30389419]
[1745454318667,1.2511719,606.11,603.46,0.30389419]
[1745454318869,1.2511719,605.55,603.75,1.04865078]
[1745454319167,1.2511719,605.55,603.76,0.30389419]
[1745454319767,0.28791859,605.54,603.75,1.04865078]
[1745454319969,0.28791859,605.54,603.76,0.30391204]
[1745454320973,0.28791859,605.54,603.77,1.057]
[1745454321174,0.28791859,605.54,603.78,0.30391204]
[1745454321373,0.28791859,605.54,603.79,0.30390403]
[1745454321571,1.2511719,605.55,603.78,0.30390403]
[1745454321772,1.2511719,605.64,603.79,0.30390403]
[1745454322072,1.2511719,605.64,603.8,0.30390403]
[1745454322269,1.2511719,605.64,603.78,0.30390403]
[1745454322473,1.2511719,605.64,603.79,0.30390403]
[1745454322675,1.2511719,605.64,603.78,0.30390403]
[1745454322873,0.28791025,605.63,603.77,1.057]
[1745454323074,0.28791025,605.63,603.78,0.30393864]
[1745454324477,0.28791025,605.63,603.78,1.74793864]
[1745454324673,1.2511719,605.64,603.79,0.30393864]
[1745454325184,1.2511719,605.62,603.79,0.30393864]
[1745454325879,0.28791859,605.61,603.79,0.30393864]
[1745454327574,1.2511719,605.62,603.79,0.30393864]
[1745454327879,1.2511719,605.34,603.8,0.30398108]
[1745454328177,1.2511719,605.34,603.81,0.30398108]
[1745454328377,1.2511719,605.34,603.79,0.30398108]
[1745454328674,1.2511719,605.34,603.78,1.444]
[1745454328878,0.287971,605.33,603.78,1.444]
[1745454332876,0.287971,605.33,603.79,0.30398257]
[1745454333580,1.2511719,605.41,603.79,0.30398257]
[1745454333880,0.28796505,605.32,603.79,0.30398257]
[1745454334181,1.2511719,605.47,603.79,0.30398257]
[1745454334781,1.2511719,605.47,603.78,1.444]
[1745454334984,0.2879579,605.46,603.78,1.444]
[1745454336578,1.2511719,605.6,603.78,1.444]
[1745454337685,1.2511719,605.75,603.78,1.444]
[1745454337878,0.28793288,605.59,603.78,1.444]
[1745454338184,1.2511719,605.75,603.78,1.444]
[1745454339384,0.28791502,605.74,603.78,1.444]
[1745454339780,1.2511719,605.75,603.78,1.444]
[1745454339982,0.28791502,605.73,603.78,1.444]
[1745454342587,1.2511719,605.8,603.78,1.444]
[1745454343285,1.2511719,605.8,603.78,2.762]
[1745454343888,0.28791859,605.79,603.78,2.762]
[1745454344787,0.28791859,605.79,603.78,4.155]
[1745454347091,1.2511719,605.69,603.78,4.155]
[1745454350487,1.2511719,605.66,603.78,4.155]
[1745454350892,1.2511719,605.66,603.78,5.223]
[1745454351896,0.28795432,605.65,603.78,5.223]
[1745454353602,1.2511719,605.39,603.78,5.223]
[1745454355902,0.28798173,605.38,603.78,5.223]
[1745454356600,1.2511719,605.32,603.78,5.223]
[1745454358903,0.28800437,605.31,603.78,5.223]
[1745454359412,1.53917627,605.31,603.78,5.223]
[1745454362110,1.53917627,605.31,603.78,3.905]
[1745454363610,1.2511719,605.31,603.78,3.905]
[1745454364009,1.2511719,604.97,603.78,3.905]
[1745454364810,0.28825128,604.96,603.78,3.905]
[1745454369011,0.28825128,604.96,603.78,2.837]
[1745454369715,1.2511719,606.02,603.78,2.837]
[1745454370817,0.2881236,606.01,603.78,2.837]
[1745454371519,0.2881236,606.01,603.78,4.269]
[1745454371716,1.2511719,605.84,603.78,4.269]
[1745454373812,0.28814507,605.83,603.78,4.269]
[1745454375616,1.2511719,605.91,603.78,4.269]
[1745454376717,0.2881391,605.9,603.78,4.269]
[1745454378418,1.2511719,605.75,603.78,4.269]
[1745454379516,1.2511719,605.75,603.78,2.876]
[1745454379714,1.2511719,605.75,603.78,4.061]
[1745454380024,0.28814387,605.74,603.78,4.061]
[1745454380822,0.28814387,605.74,603.78,2.617]
[1745454381720,1.2511719,605.94,603.78,2.617]
[1745454382326,1.2511719,605.94,603.78,3.8]
[1745454382922,0.28808543,605.93,603.78,3.8]
[1745454384426,0.28808543,605.93,603.78,4.806]
[1745454384625,1.2511719,606.09,603.78,4.806]
[1745454385921,0.28811525,606.08,603.78,4.806]
[1745454387531,1.2511719,605.89,603.78,4.806]
[1745454389833,1.2511719,605.76,603.78,4.806]
[1745454390932,0.28814507,605.75,603.78,4.806]
[1745454392234,1.2511719,605.35,603.78,4.806]
[1745454392633,1.2511719,605.35,603.78,3.374]
[1745454394435,1.2511719,604.83,603.78,3.374]
[1745454394840,1.2511719,604.83,602.56,0.28814268]
[1745454395039,1.2511719,604.83,603.04,1.317]
[1745454397541,1.2511719,604.83,603.04,2.596]
[1745454397942,0.28833009,604.82,603.04,2.596]
[1745454398144,1.2511719,604.81,603.04,5.495]
[1745454400342,1.2511719,604.8,603.04,5.495]
[1745454402950,1.2511719,604.82,603.04,5.495]
[1745454406551,1.2511719,604.8,603.04,5.495]
[1745454410647,1.2511719,604.67,603.04,5.495]
[1745454411853,0.28838743,604.66,603.04,5.495]
[1745454414754,1.2511719,605.47,603.04,5.495]
[1745454414954,0.28829187,604.65,603.04,5.495]
[1745454415249,1.2511719,605.47,603.04,5.495]
[1745454415452,1.2511719,605.48,603.04,5.495]
[1745454415955,0.28829068,605.47,603.04,5.495]
[1745454417653,1.2511719,605.48,603.04,5.495]
[1745454418855,0.28829068,605.47,603.04,5.495]
[1745454420263,1.2511719,604.27,603.04,5.495]
[1745454420563,1.2511719,604.27,603.04,1.279]
[1745454421964,0.28844002,604.26,603.04,1.279]
[1745454423765,1.2511719,604.25,603.04,1.279]
[1745454426562,0.28844002,604.26,603.04,1.279]
[1745454426767,1.2511719,604.33,603.04,1.279]
[1745454427868,0.28841851,604.32,603.04,1.279]
[1745454429766,1.2511719,604.37,603.04,1.279]
[1745454430871,0.28838982,604.36,603.04,1.279]
[1745454432677,1.2511719,604.37,603.04,1.279]
[1745454433078,2.12872998,604.94,603.04,1.279]
[1745454433079,1.2511719,604.62,603.04,1.279]
[1745454433975,0.28835517,604.61,603.04,1.279]
[1745454435682,1.2511719,604.68,603.04,1.279]
[1745454435975,0.28834801,604.6,603.04,1.279]
[1745454436280,1.2511719,604.68,603.04,1.279]
[1745454436882,1.2511719,604.66,603.04,1.279]
[1745454438981,0.2883504,604.65,603.04,1.279]
[1745454441679,1.2511719,604.67,603.04,1.279]
[1745454442085,1.2511719,604.58,603.04,1.279]
[1745454442687,1.2511719,604.58,603.04,2.31]
[1745454442983,0.28835995,604.57,603.04,2.31]
[1745454443888,1.2511719,604.36,603.04,2.31]
[1745454444189,1.2511719,604.36,603.04,3.686]
[1745454445893,0.28838146,604.35,603.04,3.686]
[1745454448795,0.28838146,604.35,602.71,1.04865078]
[1745454448993,0.28838146,604.35,602.72,0.30442545]
[1745454450197,0.28838146,604.35,602.73,0.30442545]
[1745454450596,0.28838146,604.35,602.74,0.30442545]
[1745454450798,1.2511719,604.54,602.75,0.30442545]
[1745454450995,0.28840894,604.34,602.76,0.30442545]
[1745454451193,1.2511719,604.54,602.77,0.30442545]
[1745454451394,1.2511719,604.54,602.78,0.30442545]
[1745454451897,0.28840177,604.53,602.78,0.30442545]
[1745454453105,1.2511719,604.46,602.78,0.30442545]
[1745454453503,1.2511719,604.46,602.78,1.86542545]
[1745454453699,1.2511719,604.46,602.79,0.30442545]
[1745454454100,1.2511719,604.46,602.79,1.57142545]
[1745454454305,1.2511719,604.46,602.8,0.30442545]
[1745454454908,0.28840416,604.45,602.8,0.30442545]
[1745454455105,1.2511719,604.44,602.8,0.30442545]
[1745454457706,1.2511719,604.31,602.8,0.30442545]
[1745454458107,1.2511719,604.31,602.79,1.267]
[1745454458308,1.2511719,604.31,602.8,0.30441763]
[1745454459706,1.2511719,604.31,602.79,1.267]
[1745454459902,1.2511719,604.31,602.8,0.30442821]
[1745454461008,0.28841492,604.3,602.8,0.30442821]
[1745454461206,1.2511719,604.29,602.8,0.30442821]
[1745454461408,1.2511719,604.29,602.81,0.30442499]
[1745454461606,1.2511719,604.29,602.82,0.30442499]
[1745454461806,1.2511719,604.29,602.8,0.30442499]
[1745454463708,2.12872998,604.78,602.8,0.30442499]
[1745454463709,1.2511719,604.48,602.8,0.30442499]
[1745454463903,0.28841731,604.3,602.8,0.30442499]
[1745454464209,1.2511719,604.48,602.79,1.267]
[1745454464410,1.2511719,604.48,602.8,0.30443069]
[1745454465006,0.2883946,604.47,602.8,0.30443069]
[1745454465714,1.2511719,604.48,602.8,0.30443069]
[1745454466412,1.2511719,604.42,602.8,0.30443069]
[1745454466808,0.28840177,604.41,602.8,0.30443069]
[1745454468713,1.2511719,604.42,602.8,0.30443069]
[1745454469314,1.2511719,604.5,602.8,0.30443069]
[1745454469610,1.2511719,604.5,602.79,1.267]
[1745454469914,0.28839221,604.49,602.79,1.267]
[1745454471709,1.2511719,604.5,602.79,1.267]
[1745454472116,1.2511719,604.66,602.79,1.267]
[1745454472312,1.2511719,604.66,602.79,1.25466743]
[1745454472815,0.2883946,604.65,602.79,1.25466743]
[1745454474816,1.2511719,604.66,602.79,1.25466743]
[1745454475115,2.12872998,605.41,602.79,1.25466743]
[1745454475116,1.2511719,604.89,602.79,1.25466743]
[1745454475816,0.28838863,604.88,602.79,1.25466743]
[1745454477818,1.2511719,604.89,602.79,1.25466743]
[1745454478218,1.2511719,604.89,602.79,2.76766743]
[1745454478820,0.28838863,604.88,602.79,2.76766743]
[1745454483624,1.2511719,604.89,602.79,2.76766743]
[1745454484921,0.2883958,604.88,602.79,2.76766743]
[1745454485825,0.2883958,604.88,602.79,4.10066743]
[1745454486725,1.2511719,604.89,602.79,4.10066743]
[1745454487926,0.2883958,604.88,602.79,4.10066743]
[1745454489726,1.2511719,604.89,602.79,4.10066743]
[1745454490026,0.28839341,604.87,602.79,4.10066743]
[1745454492731,1.2511719,604.89,602.79,4.10066743]
[1745454492928,0.28836951,604.86,602.79,4.10066743]
[1745454493632,1.2511719,604.61,602.79,4.10066743]
[1745454495332,1.23804725,604.61,602.79,4.10066743]
[1745454496233,2.12872998,605.37,602.79,4.10066743]
[1745454496932,0.28830501,605.36,602.79,4.10066743]
[1745454498534,2.12872998,605.34,602.79,4.10066743]
[1745454498933,0.28830859,605.33,602.79,4.10066743]
[1745454500435,2.41703857,605.33,602.79,4.10066743]
[1745454503638,2.12872998,605.31,602.79,4.10066743]
[1745454505036,2.12872998,605.31,602.79,5.59666743]
[1745454505839,2.12872998,604.98,602.79,5.59666743]
[1745454507542,0.2883492,604.97,602.79,5.59666743]
[1745454508446,2.12872998,604.75,602.79,5.59666743]
[1745454508746,2.12872998,604.75,602.79,4.342]
[1745454511245,2.12872998,604.89,602.79,4.342]
[1745454511945,0.28835995,604.88,602.79,4.342]
[1745454513149,2.12872998,604.85,602.79,4.342]
[1745454513948,2.12872998,604.85,602.79,5.811]
[1745454514851,2.12872998,604.78,602.79,5.811]
[1745454516653,0.28838863,604.77,602.79,5.811]
[1745454519754,2.12872998,604.87,602.79,5.811]
[1745454520859,2.12872998,604.72,602.79,5.811]
[1745454522152,0.28843524,604.71,602.79,5.811]
[1745454522658,2.12872998,604.72,602.79,5.811]
[1745454523459,2.12872998,604.74,602.79,5.811]
[1745454526660,1.25005892,604.78,602.79,5.811]
[1745454526860,0.28844002,604.73,602.79,5.811]
[1745454527156,1.25005892,604.78,602.79,5.811]
[1745454528055,0.28843524,604.77,602.79,5.811]
[1745454528760,2.12872998,605.67,602.79,5.811]
[1745454528761,1.25005892,604.54,602.79,5.811]
[1745454529858,0.28846393,604.53,602.79,5.811]
[1745454534767,1.25005892,604.81,602.79,5.811]
[1745454536067,0.28840297,604.8,602.79,5.811]
[1745454536470,1.25005892,604.76,602.79,5.811]
[1745454538068,0.28840894,604.75,602.79,5.811]
[1745454539765,1.25005892,604.66,602.79,5.811]
[1745454542670,0.28840894,604.75,602.79,5.811]
[1745454542871,0.28840894,604.75,602.39,0.28840894]
[1745454543071,0.28840894,604.75,602.4,0.30450298]
[1745454543771,1.25005892,605.15,602.4,0.30450298]
[1745454543967,1.25005892,605.15,602.07,0.30450298]
[1745454544170,1.25005892,605.15,602.08,0.30450298]
[1745454544370,1.25005892,605.15,602.07,0.30450298]
[1745454544566,1.25005892,605.15,602.08,0.30450298]
[1745454544772,1.25005892,605.13,602.07,1.35315376]
[1745454545066,1.25005892,605.13,602.09,0.28845437]
[1745454545271,1.25005892,605.13,602.1,0.30450816]